bitfinex/quotes_BTCUSD_20250408
["timestamp","ask_amount","ask_price","bid_price","bid_amount"]
[1744137750063,0.01288,77635.0,77624.0,0.257649]
[1744137750269,0.257655,77623.0,77621.0,0.003]
[1744137750420,0.25764,77628.0,77624.0,0.257651]
[1744137750822,0.257643,77627.0,77624.0,0.257651]
[1744137751036,0.34,77630.0,77626.0,0.257645]
[1744137751258,0.34,77630.0,77628.0,0.257637]
[1744137751464,0.597634,77630.0,77626.0,0.270526]
[1744137752050,0.597634,77630.0,77627.0,0.257642]
[1744137752532,0.598634,77630.0,77627.0,0.257642]
[1744137753045,0.597648,77625.0,77624.0,0.001]
[1744137753310,0.012884,77615.0,77605.0,0.012885]
[1744137753537,0.34,77625.0,77593.0,0.0488]
[1744137753538,0.34,77619.0,77618.0,0.257671]
[1744137753814,0.352881,77629.0,77618.0,0.012883]
[1744137754055,0.012883,77621.0,77612.0,0.257689]
[1744137754293,0.34,77621.0,77614.0,0.012884]
[1744137754572,0.012884,77613.0,77602.0,0.00971328]
[1744137754832,0.012884,77613.0,77592.0,0.257758]
[1744137754833,0.270622,77599.0,77592.0,0.257758]
[1744137755078,0.34,77601.0,77599.0,0.012886]
[1744137755309,0.34,77601.0,77600.0,0.270617]
[1744137755790,0.34,77601.0,77599.0,0.27062]
[1744137756016,0.257731,77600.0,77599.0,0.00012509]
[1744137756264,0.610617,77600.0,77599.0,0.00012509]
[1744137756491,0.610617,77600.0,77599.0,0.00512509]
[1744137756719,0.34,77600.0,77599.0,0.00512509]
[1744137756944,0.34,77600.0,77599.0,0.27574609]
[1744137757174,0.34,77600.0,77599.0,0.28074609]
[1744137757407,0.01300698,77601.0,77600.0,0.270617]
[1744137757621,0.01200698,77601.0,77600.0,0.270617]
[1744137757849,0.01200698,77601.0,77599.0,0.00412509]
[1744137757850,0.277617,77600.0,77599.0,0.00412509]
[1744137758083,0.617617,77600.0,77599.0,0.00412509]
[1744137758309,0.346,77600.0,77599.0,0.00012509]
[1744137758586,0.604731,77600.0,77599.0,0.00012509]
[1744137759451,0.608731,77600.0,77599.0,0.00012509]
[1744137759950,0.621617,77600.0,77599.0,0.00012509]
[1744137760213,0.608731,77600.0,77599.0,0.00012509]
[1744137760425,0.601731,77600.0,77599.0,0.00012509]
[1744137760650,0.604731,77600.0,77599.0,0.00012509]
[1744137760901,0.01249542,77601.0,77600.0,0.270617]
[1744137761383,0.34,77609.0,77606.0,0.257709]
[1744137761824,0.34,77609.0,77600.0,0.012886]
[1744137762090,0.012885,77605.0,77599.0,0.00112509]
[1744137762303,0.257731,77600.0,77599.0,0.00012509]
[1744137762763,0.34,77603.0,77601.0,0.257726]
[1744137762987,0.34,77603.0,77600.0,0.257731]
[1744137763238,0.01418351,77609.0,77602.0,0.270611]
[1744137763429,0.01418351,77609.0,77608.0,0.27059]
[1744137763562,0.597731,77600.0,77599.0,0.00012509]
[1744137763799,0.610617,77600.0,77599.0,0.00012509]
[1744137763987,0.597731,77600.0,77599.0,0.00012509]
[1744137764401,0.34,77600.0,77599.0,0.00012509]
[1744137764599,0.27059,77608.0,77599.0,0.00012509]
[1744137764600,0.27188751,77609.0,77606.0,0.257711]
[1744137764751,0.34,77608.0,77606.0,0.257711]
[1744137765153,0.26988751,77609.0,77602.0,0.012886]
[1744137765356,0.352885,77608.0,77602.0,0.257724]
[1744137765561,0.34,77606.0,77604.0,0.257717]
[1744137765781,0.34,77606.0,77602.0,0.27061]
[1744137766147,0.597714,77606.0,77602.0,0.27061]
[1744137766356,0.34,77606.0,77605.0,0.257715]
[1744137766579,0.257715,77605.0,77601.0,0.270614]
[1744137766757,0.610617,77600.0,77590.0,0.258098]
[1744137766953,0.610617,77600.0,77591.0,0.258159]
[1744137767165,0.610617,77600.0,77592.0,0.257758]
[1744137767976,0.597731,77600.0,77592.0,0.012887]
[1744137768200,0.600731,77600.0,77596.0,0.257742]
[1744137768407,0.613617,77600.0,77595.0,0.257748]
[1744137768555,0.613617,77600.0,77594.0,0.25775]
[1744137768972,0.613617,77600.0,77595.0,0.257745]
[1744137769179,0.003,77600.0,77591.0,0.0004]
[1744137769376,0.613617,77600.0,77593.0,0.257752]
[1744137769919,0.57403075,77600.0,77596.0,0.257744]
[1744137770153,0.58691675,77600.0,77594.0,0.270638]
[1744137770290,0.58691675,77600.0,77595.0,0.257748]
[1744137770729,0.58691675,77600.0,77592.0,0.270645]
[1744137770930,0.58691675,77600.0,77592.0,0.257758]
[1744137771134,0.58691675,77600.0,77591.0,0.271046]
[1744137771339,0.71317539,77600.0,77591.0,0.0004]
[1744137772729,0.58691675,77600.0,77591.0,0.0004]
[1744137775468,0.58691675,77600.0,77599.0,0.00022509]
[1744137776576,0.57403075,77600.0,77599.0,0.00022509]
[1744137777110,0.003,77600.0,77599.0,0.27084609]
[1744137777622,0.003,77600.0,77599.0,0.00022509]
[1744137777823,0.613617,77600.0,77599.0,0.00022509]
[1744137778318,0.613617,77600.0,77591.0,0.0004]
[1744137778319,0.610645,77592.0,77591.0,0.0004]
[1744137778724,0.73690364,77592.0,77591.0,0.0004]
[1744137780002,0.610698,77577.0,77570.0,0.0003352]
[1744137780974,0.86321209,77577.0,77570.0,0.0003352]
[1744137781126,0.78425664,77577.0,77570.0,0.0003352]
[1744137781462,0.98105664,77577.0,77570.0,0.0003352]
[1744137782190,0.98405664,77577.0,77570.0,0.0003352]
[1744137782462,0.98105664,77577.0,77570.0,0.0003352]
[1744137782872,0.98605664,77577.0,77570.0,0.0003352]
[1744137783075,0.98205664,77577.0,77570.0,0.0003352]
[1744137783275,0.98705664,77577.0,77570.0,0.0003352]
[1744137784446,1.01496714,77577.0,77570.0,0.0003352]
[1744137784648,0.98705664,77577.0,77570.0,0.0003352]
[1744137785067,0.610729,77568.0,77567.0,6e-07]
[1744137785391,0.73698764,77568.0,77567.0,0.00041826]
[1744137785915,0.76633135,77568.0,77567.0,2.6e-07]
[1744137786050,0.96994514,77568.0,77567.0,2.6e-07]
[1744137786254,0.97252192,77568.0,77567.0,2.6e-07]
[1744137786513,0.90327988,77568.0,77567.0,2.6e-07]
[1744137786684,0.77702443,77568.0,77567.0,2.6e-07]
[1744137786890,0.81434598,77568.0,77567.0,2.6e-07]
[1744137787086,0.82334598,77568.0,77567.0,0.00100026]
[1744137787321,0.74598764,77568.0,77567.0,0.00100026]
[1744137787528,0.75498764,77568.0,77567.0,0.00100026]
[1744137788360,0.74598764,77568.0,77567.0,2.6e-07]
[1744137788840,0.75498764,77568.0,77567.0,0.00100026]
[1744137789791,0.88124309,77568.0,77567.0,0.00100026]
[1744137790877,0.012895,77549.0,77536.0,0.257943]
[1744137791009,0.610796,77549.0,77548.0,0.00046053]
[1744137791879,0.63477393,77549.0,77548.0,0.00046053]
[1744137792085,0.610799,77548.0,77535.0,0.0003352]
[1744137792255,0.73705764,77548.0,77535.0,0.0003352]
[1744137792456,0.63477693,77548.0,77540.0,0.012896]
[1744137792660,0.88729102,77548.0,77535.0,0.0003352]
[1744137793457,0.90127987,77548.0,77535.0,0.0003352]
[1744137793657,0.77502442,77548.0,77535.0,0.0003352]
[1744137793859,0.77302442,77548.0,77535.0,0.0003352]
[1744137794087,0.78202442,77548.0,77535.0,0.0003352]
[1744137794289,0.78202442,77548.0,77535.0,0.2711772]
[1744137794482,0.78202442,77548.0,77535.0,0.2582802]
[1744137794683,0.34,77538.0,77535.0,0.0003352]
[1744137794910,0.610841,77536.0,77535.0,0.00046055]
[1744137795331,0.62282985,77536.0,77535.0,0.00046055]
[1744137795676,0.64680778,77536.0,77535.0,0.00046055]
[1744137796793,0.64680778,77536.0,77535.0,0.00146055]
[1744137796997,0.64780778,77536.0,77535.0,0.00046055]
[1744137797438,0.64980778,77536.0,77535.0,0.00046055]
[1744137799853,0.37896678,77536.0,77535.0,0.00046055]
[1744137800265,0.39186378,77536.0,77535.0,0.00046055]
[1744137801542,0.51812242,77536.0,77535.0,0.00046055]
[1744137802132,0.51812242,77536.0,77531.0,0.0004]
[1744137802133,0.610855,77532.0,77531.0,0.0004]
[1744137802332,0.610855,77532.0,77521.0,0.0015854]
[1744137802333,0.61089,77522.0,77521.0,0.0015854]
[1744137802496,0.61089,77522.0,77513.0,0.0003354]
[1744137802497,0.610917,77514.0,77513.0,0.0003354]
[1744137802690,0.610917,77514.0,77513.0,0.00046056]
[1744137802897,0.63489493,77514.0,77513.0,0.00046056]
[1744137803296,0.64688378,77514.0,77513.0,0.00046056]
[1744137803502,0.76575466,77514.0,77513.0,0.00046056]
[1744137803748,0.64688378,77514.0,77513.0,0.00046056]
[1744137805757,0.65088378,77514.0,77513.0,0.00046056]
[1744137806539,0.78214242,77514.0,77513.0,0.00046056]
[1744137807594,0.65588378,77514.0,77513.0,0.00046056]
[1744137807763,0.598024,77513.0,77507.0,0.27094]
[1744137807972,0.34,77510.0,77507.0,0.27094]
[1744137808171,0.34,77510.0,77509.0,0.270935]
[1744137808380,0.36397793,77510.0,77509.0,0.270935]
[1744137809048,0.02397793,77510.0,77509.0,0.270935]
[1744137809199,0.03596678,77510.0,77509.0,0.270935]
[1744137809602,0.03796678,77510.0,77509.0,0.270935]
[1744137810123,0.04096678,77510.0,77509.0,0.270935]
[1744137810536,0.01698885,77510.0,77509.0,0.270935]
[1744137811507,0.01698885,77510.0,77509.0,0.258034]
[1744137811778,0.01698885,77510.0,77509.0,0.270935]
[1744137815115,0.01698885,77510.0,77509.0,0.44589364]
[1744137815261,0.01698885,77510.0,77509.0,0.49569364]
[1744137815711,0.42076648,77550.0,77537.0,0.270838]
[1744137815909,0.257879,77556.0,77552.0,0.25789]
[1744137816110,0.257879,77556.0,77548.0,0.012895]
[1744137816111,0.257891,77552.0,77549.0,0.257894]
[1744137816313,0.01244984,77556.0,77555.0,0.270775]
[1744137817645,0.00012539,77556.0,77555.0,0.269475]
[1744137817845,0.00012539,77556.0,77555.0,0.39573364]
[1744137818031,0.00012539,77556.0,77555.0,0.49423364]
[1744137818666,0.00812539,77556.0,77555.0,0.49423364]
[1744137818826,0.00012539,77556.0,77555.0,0.49423364]
[1744137819209,0.00012539,77556.0,77555.0,0.0538]
[1744137819415,0.35301839,77556.0,77555.0,0.004]
[1744137820054,0.47927703,77556.0,77555.0,0.002]
[1744137820587,0.34,77541.0,77537.0,0.25794]
[1744137820826,0.597928,77541.0,77536.0,0.27084]
[1744137820949,0.34,77541.0,77537.0,0.25794]
[1744137821151,0.00012539,77556.0,77544.0,0.012895]
[1744137821379,0.34,77551.0,77544.0,0.012895]
[1744137821653,0.34,77549.0,77545.0,0.257914]
[1744137822211,0.34,77547.0,77542.0,0.257924]
[1744137822368,0.34,77543.0,77541.0,0.257927]
[1744137822570,0.34,77543.0,77542.0,0.012896]
[1744137822812,0.00012539,77556.0,77550.0,0.012894]
[1744137823002,0.00012539,77556.0,77555.0,0.012894]
[1744137824601,0.012894,77552.0,77544.0,0.270811]
[1744137824800,0.00012539,77556.0,77550.0,0.257895]
[1744137825003,0.01221558,77560.0,77558.0,0.257871]
[1744137825163,0.257861,77561.0,77555.0,0.270775]
[1744137825366,0.012892,77565.0,77560.0,0.012893]
[1744137825567,0.27057645,77565.0,77562.0,0.257858]
[1744137825781,0.01272745,77565.0,77563.0,0.257854]
[1744137825985,0.012892,77564.0,77556.0,0.257876]
[1744137826183,0.257848,77565.0,77556.0,0.012893]
[1744137826440,0.01245066,77565.0,77561.0,0.012893]
[1744137826676,0.012892,77564.0,77559.0,0.257867]
[1744137826884,0.270771,77556.0,77555.0,0.001]
[1744137827095,0.270806,77547.0,77541.0,0.012896]
[1744137827278,0.270806,77547.0,77542.0,0.012896]
[1744137827493,0.257891,77553.0,77549.0,0.257898]
[1744137827651,0.257915,77545.0,77537.0,0.012897]
[1744137827860,0.012896,77543.0,77537.0,0.012897]
[1744137828086,0.012896,77543.0,77539.0,0.257934]
[1744137828394,0.257895,77551.0,77536.0,0.00012539]
[1744137828395,0.34,77555.0,77548.0,0.012895]
[1744137828536,0.257904,77549.0,77543.0,0.012896]
[1744137828735,0.012895,77547.0,77542.0,0.002]
[1744137828980,0.012895,77547.0,77536.0,0.00012539]
[1744137828981,0.012897,77537.0,77536.0,0.00012539]
[1744137829277,0.610838,77537.0,77536.0,0.00012539]
[1744137830263,0.610838,77537.0,77536.0,1e-08]
[1744137830890,0.612838,77537.0,77536.0,1e-08]
[1744137831503,0.012899,77520.0,77512.0,0.012901]
[1744137831709,0.34,77528.0,77518.0,0.258004]
[1744137831913,0.34,77525.0,77518.0,0.258004]
[1744137832126,0.257993,77522.0,77519.0,0.258]
[1744137832704,0.257984,77524.0,77519.0,0.0129]
[1744137832907,0.34,77528.0,77520.0,0.257997]
[1744137833113,0.257992,77522.0,77518.0,0.258004]
[1744137833297,0.257992,77522.0,77519.0,0.258001]
[1744137833499,0.0129,77518.0,77507.0,0.258041]
[1744137833844,0.258018,77514.0,77511.0,0.012901]
[1744137834048,0.258018,77514.0,77488.0,0.192]
[1744137834049,0.258044,77506.0,77497.0,0.012903]
[1744137834259,0.258044,77506.0,77502.0,0.270958]
[1744137834546,0.258044,77506.0,77502.0,0.258056]
[1744137834749,0.258051,77504.0,77501.0,0.0004]
[1744137835281,0.258051,77504.0,77503.0,0.00029265]
[1744137836147,0.270953,77504.0,77503.0,0.00029265]
[1744137836313,0.258051,77504.0,77503.0,0.00029265]
[1744137837296,0.012902,77507.0,77503.0,0.01319465]
[1744137837297,0.258042,77507.0,77503.0,0.01319465]
[1744137837508,0.258044,77506.0,77504.0,0.258051]
[1744137837883,0.34,77508.0,77505.0,0.258047]
[1744137838196,0.34,77508.0,77504.0,0.270953]
[1744137838197,0.258027,77512.0,77508.0,0.258034]
[1744137838422,0.25803,77511.0,77507.0,0.258041]
[1744137838552,0.258035,77509.0,77505.0,0.258047]
[1744137838754,0.001,77506.0,77505.0,0.258047]
[1744137839764,0.001,77506.0,77505.0,0.270949]
[1744137840181,0.001,77506.0,77505.0,0.258047]
[1744137840372,0.258035,77509.0,77506.0,0.258044]
[1744137841028,0.610932,77511.0,77503.0,0.00029265]
[1744137841239,0.270932,77511.0,77503.0,0.00029265]
[1744137841559,0.258051,77504.0,77503.0,0.00029265]
[1744137842522,0.258046,77506.0,77503.0,0.00029265]
[1744137842723,0.34,77507.0,77504.0,0.25805]
[1744137842955,0.34,77513.0,77510.0,0.012901]
[1744137843158,0.0129,77517.0,77509.0,0.258028]
[1744137843319,0.598025,77512.0,77509.0,0.258028]
[1744137843723,0.34,77514.0,77508.0,0.012901]
[1744137843918,0.02550437,77518.0,77509.0,0.012901]
[1744137843919,0.35260437,77518.0,77509.0,0.012901]
[1744137844181,0.35260437,77518.0,77514.0,0.258015]
[1744137844401,0.01260437,77518.0,77517.0,0.270907]
[1744137844618,0.257973,77528.0,77521.0,0.012899]
[1744137844861,0.012898,77530.0,77510.0,0.012901]
[1744137844862,0.012899,77521.0,77510.0,0.012901]
[1744137845070,0.258002,77519.0,77516.0,0.25801]
[1744137845411,0.002,77517.0,77516.0,0.25801]
[1744137845618,0.01257276,77518.0,77517.0,0.258007]
[1744137845810,0.34,77519.0,77518.0,0.258004]
[1744137846194,0.34,77519.0,77518.0,0.270904]
[1744137846540,0.34,77521.0,77519.0,0.258]
[1744137846743,0.34,77521.0,77520.0,0.270896]
[1744137847344,0.34,77529.0,77528.0,0.257971]
[1744137847762,0.34,77529.0,77527.0,0.270871]
[1744137847962,0.34,77529.0,77525.0,0.25798]
[1744137848164,0.34,77529.0,77527.0,0.257974]
[1744137848401,0.34,77531.0,77530.0,0.257963]
[1744137849057,0.34,77531.0,77526.0,0.270872]
[1744137849279,0.012899,77520.0,77514.0,0.258017]
[1744137849682,0.012899,77520.0,77516.0,0.258011]
[1744137849683,0.258001,77519.0,77516.0,0.258011]
[1744137849889,0.258012,77516.0,77512.0,0.270923]
[1744137850189,0.258007,77517.0,77514.0,0.258017]
[1744137850390,0.270905,77518.0,77514.0,0.258017]
[1744137850559,0.38555218,77524.0,77523.0,0.012899]
[1744137850751,0.34,77523.0,77522.0,0.012899]
[1744137850943,0.34,77523.0,77522.0,0.257991]
[1744137851556,0.34,77523.0,77520.0,0.257997]
[1744137851813,0.34,77519.0,77517.0,0.258005]
[1744137851960,0.34,77519.0,77518.0,0.258004]
[1744137852569,0.34,77519.0,77517.0,0.270905]
[1744137852815,0.34,77522.0,77520.0,0.257997]
[1744137853029,0.597991,77522.0,77519.0,0.258]
[1744137853230,0.34,77522.0,77520.0,0.257996]
[1744137853491,0.597992,77522.0,77519.0,0.258]
[1744137853692,0.34,77522.0,77519.0,0.258]
[1744137853887,0.34,77522.0,77520.0,0.257997]
[1744137854193,0.34,77520.0,77516.0,0.0129]
[1744137854389,0.34,77520.0,77519.0,0.258001]
[1744137854707,0.34,77520.0,77519.0,0.270901]
[1744137855287,0.001,77522.0,77521.0,0.270893]
[1744137855488,0.34,77525.0,77524.0,0.270883]
[1744137855689,0.34,77525.0,77523.0,0.257986]
[1744137855919,0.34,77525.0,77523.0,0.257987]
[1744137856121,0.34,77525.0,77524.0,0.257984]
[1744137856553,0.352898,77526.0,77521.0,0.257994]
[1744137856770,0.352898,77526.0,77496.0,0.57839085]
[1744137856771,0.012899,77522.0,77513.0,0.012901]
[1744137856973,0.34,77526.0,77522.0,0.257991]
[1744137857249,0.34,77526.0,77522.0,0.00012505]
[1744137857427,0.610886,77523.0,77522.0,0.00012505]
[1744137859140,0.610886,77523.0,77506.0,0.012902]
[1744137859141,0.34,77512.0,77506.0,0.012902]
[1744137859300,0.34,77512.0,77509.0,0.012901]
[1744137859715,0.34,77512.0,77508.0,0.270938]
[1744137859939,0.012901,77511.0,77505.0,0.258045]
[1744137860139,0.610926,77512.0,77507.0,0.258041]
[1744137860464,0.61024233,77512.0,77508.0,0.258036]
[1744137860760,0.270938,77509.0,77503.0,0.0001676]
[1744137860933,0.258047,77506.0,77503.0,0.0001676]
[1744137861135,0.270949,77506.0,77503.0,0.0001676]
[1744137861342,0.258047,77506.0,77503.0,0.0001676]
[1744137862032,0.012902,77505.0,77503.0,0.0001676]
[1744137862276,0.27094,77508.0,77505.0,0.258047]
[1744137862422,0.258039,77508.0,77505.0,0.258047]
[1744137862795,0.25803,77511.0,77507.0,0.258037]
[1744137863285,0.258033,77510.0,77507.0,0.258041]
[1744137863761,0.258035,77509.0,77506.0,0.270946]
[1744137863968,0.258033,77510.0,77507.0,0.258038]
[1744137864165,0.598027,77512.0,77509.0,0.258034]
[1744137864412,0.34,77512.0,77511.0,0.270928]
[1744137864566,0.34,77512.0,77507.0,0.27094]
[1744137864772,0.610953,77504.0,77497.0,0.258073]
[1744137864965,0.610953,77504.0,77498.0,0.2584054]
[1744137865270,0.610953,77504.0,77499.0,0.258067]
[1744137865671,0.34,77504.0,77500.0,0.258063]
[1744137865939,0.598051,77504.0,77500.0,0.258063]
[1744137866084,0.610953,77504.0,77500.0,0.258063]
[1744137866281,0.34,77504.0,77503.0,0.2582216]
[1744137866602,0.598051,77504.0,77503.0,0.0001676]
[1744137866804,0.34,77504.0,77503.0,0.0001676]
[1744137867004,0.598051,77504.0,77503.0,0.0001676]
[1744137867203,0.34,77504.0,77503.0,0.0001676]
[1744137867399,0.34,77504.0,77503.0,0.2582216]
[1744137867773,0.598051,77504.0,77503.0,0.0001676]
[1744137868175,0.34,77504.0,77503.0,0.0001676]
[1744137868590,0.341,77504.0,77503.0,0.0001676]
[1744137869858,0.611953,77504.0,77503.0,0.0001676]
[1744137870553,0.610959,77502.0,77501.0,0.0004]
[1744137871565,0.73721764,77502.0,77501.0,0.0004]
[1744137873239,0.27097,77499.0,77498.0,0.0003354]
[1744137874791,0.27309516,77499.0,77498.0,0.0003354]
[1744137875015,0.4013538,77499.0,77498.0,0.0003354]
[1744137875455,0.48894901,77499.0,77498.0,0.0003354]
[1744137875683,0.4013538,77499.0,77498.0,0.0003354]
[1744137875909,0.27509516,77499.0,77498.0,0.0003354]
[1744137876386,0.27309516,77499.0,77498.0,0.0003354]
[1744137877059,0.27109516,77499.0,77498.0,0.0003354]
[1744137877333,0.00212516,77499.0,77498.0,0.2713094]
[1744137877563,0.00412516,77499.0,77498.0,0.2713094]
[1744137878244,0.00212516,77499.0,77498.0,0.0003354]
[1744137878489,0.27109516,77499.0,77498.0,0.0003354]
[1744137878719,0.00012516,77499.0,77498.0,0.0003354]
[1744137878907,0.25819216,77499.0,77498.0,0.0003354]
[1744137879137,0.00012516,77499.0,77498.0,0.0003354]
[1744137880286,0.00012516,77499.0,77498.0,0.2713094]
[1744137880754,0.06123308,77499.0,77498.0,0.0003354]
[1744137880976,0.61109516,77499.0,77498.0,0.0003354]
[1744137881266,0.34012516,77499.0,77498.0,0.0003354]
[1744137881490,0.34012516,77499.0,77498.0,0.2584064]
[1744137881715,0.34012516,77499.0,77498.0,0.2713094]
[1744137881933,0.00012516,77499.0,77498.0,0.2713094]
[1744137882146,0.258048,77505.0,77501.0,0.258058]
[1744137882406,0.258048,77505.0,77502.0,0.258054]
[1744137882603,0.258047,77505.0,77502.0,0.258054]
[1744137882837,0.258054,77503.0,77499.0,0.258065]
[1744137883072,0.012902,77502.0,77498.0,0.2584064]
[1744137883309,0.258061,77501.0,77498.0,0.0003354]
[1744137883536,0.258067,77499.0,77498.0,0.0003354]
[1744137883754,0.270964,77501.0,77498.0,0.0003354]
[1744137883993,0.258061,77501.0,77498.0,0.2584054]
[1744137884208,0.270956,77504.0,77498.0,0.2584054]
[1744137884209,0.258052,77504.0,77500.0,0.258064]
[1744137884435,0.270954,77504.0,77500.0,0.258064]
[1744137884653,0.27097,77499.0,77498.0,0.0003354]
[1744137884881,0.270959,77504.0,77498.0,0.0003354]
[1744137885073,0.25805,77505.0,77500.0,0.270965]
[1744137885217,0.258051,77504.0,77501.0,0.258061]
[1744137885441,0.258051,77504.0,77500.0,0.258062]
[1744137885681,0.0129,77515.0,77507.0,0.258041]
[1744137885903,0.270897,77520.0,77512.0,0.012901]
[1744137886182,0.012901,77511.0,77504.0,0.25805]
[1744137886362,0.00012535,77511.0,77509.0,0.258033]
[1744137886579,0.00012535,77511.0,77510.0,0.258031]
[1744137886806,0.00012535,77511.0,77510.0,0.270932]
[1744137887325,0.00012535,77511.0,77510.0,0.258031]
[1744137887544,0.00212535,77511.0,77510.0,0.270932]
[1744137887970,0.00012535,77511.0,77510.0,0.270932]
[1744137888185,0.00012535,77511.0,77509.0,0.258033]
[1744137888413,0.00112535,77511.0,77474.0,0.05]
[1744137888618,0.258064,77501.0,77496.0,0.012903]
[1744137888817,0.270956,77504.0,77500.0,0.258061]
[1744137889191,0.270956,77504.0,77501.0,0.25806]
[1744137889192,0.258054,77504.0,77501.0,0.25806]
[1744137889391,0.00112535,77511.0,77505.0,0.012902]
[1744137889622,0.00012535,77511.0,77508.0,0.258036]
[1744137889824,0.258031,77510.0,77506.0,0.258038]
[1744137890281,0.00112535,77511.0,77499.0,0.258064]
[1744137890282,0.012902,77504.0,77499.0,0.258064]
[1744137890458,0.012902,77503.0,77499.0,0.258064]
[1744137890603,0.258067,77499.0,77498.0,0.0003354]
[1744137890822,0.27097,77499.0,77498.0,0.0003354]
[1744137891056,0.42138019,77499.0,77498.0,0.0003354]
[1744137891511,0.46728019,77499.0,77498.0,0.0003354]
[1744137892141,0.50950409,77499.0,77498.0,0.0003354]
[1744137892371,0.63575954,77499.0,77498.0,0.0003354]
[1744137892570,0.63375954,77499.0,77498.0,0.0003354]
[1744137892797,0.61360799,77499.0,77498.0,0.0003354]
[1744137892991,0.61560799,77499.0,77498.0,0.0003354]
[1744137893412,0.61160799,77499.0,77498.0,0.0003354]
[1744137893988,0.60960799,77499.0,77498.0,0.0003354]
[1744137894187,0.61760799,77499.0,77498.0,0.0003354]
[1744137894392,0.49135254,77499.0,77498.0,0.0003354]
[1744137894634,0.44545254,77499.0,77498.0,0.0003354]
[1744137895053,0.78545254,77499.0,77498.0,0.0003354]
[1744137895308,0.79345254,77499.0,77498.0,0.0003354]
[1744137898853,0.78545254,77499.0,77498.0,0.0003354]
[1744137899009,0.61103,77482.0,77481.0,0.0001677]
[1744137899222,0.73728864,77482.0,77481.0,0.0001677]
[1744137900274,0.61103,77482.0,77481.0,0.00058611]
[1744137901298,0.73728864,77482.0,77481.0,0.00058611]
[1744137901527,0.34,77482.0,77481.0,0.00058611]
[1744137901726,0.346,77482.0,77481.0,0.25871311]
[1744137901881,0.003,77482.0,77481.0,0.32151911]
[1744137902099,0.003,77482.0,77481.0,0.36801911]
[1744137902461,0.002,77482.0,77481.0,0.49427775]
[1744137902652,0.258061,77501.0,77497.0,0.258072]
[1744137902854,0.012901,77509.0,77502.0,0.012902]
[1744137902993,0.11361753,77514.0,77513.0,0.270922]
[1744137903202,0.11361753,77514.0,77513.0,0.258021]
[1744137903402,0.11361753,77514.0,77513.0,0.39718064]
[1744137904741,0.11361753,77514.0,77513.0,0.39697086]
[1744137904968,0.0003352,77536.0,77528.0,0.012898]
[1744137905131,0.0003352,77536.0,77535.0,0.270845]
[1744137905325,0.00046057,77536.0,77535.0,0.270845]
[1744137905522,0.00046057,77536.0,77535.0,0.39710364]
[1744137905733,0.00046057,77536.0,77535.0,0.41164449]
[1744137906448,0.00046057,77536.0,77535.0,0.39710364]
[1744137906637,0.00746057,77536.0,77535.0,0.39710364]
[1744137906854,0.00746057,77536.0,77535.0,0.42117437]
[1744137907036,0.00746057,77536.0,77535.0,0.40663352]
[1744137907786,0.00446057,77536.0,77535.0,0.40663352]
[1744137907986,0.00546057,77536.0,77535.0,0.40663352]
[1744137908235,0.00146057,77536.0,77535.0,0.40663352]
[1744137908390,0.00046057,77536.0,77535.0,0.40663352]
[1744137909043,0.00046057,77536.0,77535.0,0.270845]
[1744137909354,0.34,77548.0,77543.0,0.012896]
[1744137909490,0.34,77546.0,77542.0,0.257923]
[1744137909691,4.849e-05,77548.0,77542.0,0.257923]
[1744137909892,0.012896,77540.0,77532.0,0.012897]
[1744137910098,0.34,77541.0,77536.0,0.270838]
[1744137910356,0.597929,77541.0,77536.0,0.270838]
[1744137910894,0.352896,77541.0,77534.0,0.012897]
[1744137911096,0.352896,77541.0,75562.0,0.136]
[1744137911097,0.34,77530.0,77517.0,0.0129]
[1744137911298,0.257973,77528.0,77524.0,0.257983]
[1744137911426,0.610874,77527.0,77521.0,0.270892]
[1744137911634,0.34,77522.0,77518.0,0.258004]
[1744137911861,0.34,77522.0,77520.0,0.257996]
[1744137912057,0.34,77522.0,77520.0,0.270895]
[1744137912258,0.257935,77539.0,77518.0,0.270897]
[1744137912259,0.34,77539.0,77535.0,0.270841]
[1744137912600,0.597944,77537.0,77533.0,0.257952]
[1744137912824,0.012897,77535.0,77523.0,0.012899]
[1744137913032,0.19068,77540.0,77521.0,0.257992]
[1744137913033,0.34,77524.0,77521.0,0.257992]
[1744137913207,0.34,77524.0,77523.0,0.00012537]
[1744137913957,0.34,77532.0,77526.0,0.012898]
[1744137914161,0.34,77532.0,77528.0,0.270868]
[1744137914365,0.34,77528.0,77524.0,0.257983]
[1744137914736,0.610883,77524.0,77523.0,0.00012537]
[1744137914898,0.34,77524.0,77523.0,0.00012537]
[1744137915088,0.38568873,77550.0,77538.0,0.270834]
[1744137915281,0.257916,77545.0,77538.0,0.270834]
[1744137915508,0.012895,77546.0,77538.0,0.270834]
[1744137915710,0.02516769,77548.0,77538.0,0.270834]
[1744137915911,0.02516769,77548.0,77520.0,0.012899]
[1744137915912,0.012897,77532.0,77520.0,0.012899]
[1744137916152,0.012897,77534.0,77528.0,0.257969]
[1744137916326,0.270841,77536.0,77529.0,0.012898]
[1744137916547,0.270841,77536.0,77530.0,0.257962]
[1744137916548,0.34,77533.0,77530.0,0.257962]
[1744137916748,0.34,77533.0,77526.0,0.012898]
[1744137916749,0.34,77524.0,77519.0,0.257998]
[1744137916949,0.257981,77526.0,77522.0,0.270888]
[1744137917248,0.34,77524.0,77522.0,0.012899]
[1744137917471,0.34,77524.0,77523.0,0.27101137]
[1744137918303,0.34,77530.0,77527.0,0.257971]
[1744137918620,0.34,77530.0,77529.0,0.270865]
[1744137919069,0.2582202,77554.0,77547.0,0.270803]
[1744137919269,0.0132292,77554.0,77545.0,0.257914]
[1744137919473,0.012894,77551.0,77545.0,0.257911]
[1744137919636,0.2711142,77554.0,77547.0,0.257907]
[1744137919833,0.01320669,77549.0,77548.0,0.270799]